fUSD/lending_fUSD_20250125
["ID","MTS","AMOUNT","RATE_DAILY","PERIOD"]
[350355465,1737810639927,-679.27,0.00018763,2]
[350355466,1737810639936,-500.0,0.00018763,2]
[350355467,1737810639946,-500.0,0.00018763,2]
[350355468,1737810639955,-574.85,0.00018763,2]
[350355469,1737810639965,-500.0,0.00018763,2]
[350355470,1737810639974,-504.31,0.00018763,2]
[350355471,1737810639984,-500.0,0.00018763,2]
[350355472,1737810639994,-500.0,0.00018763,2]
[350355473,1737810640004,-595.61,0.00018763,2]
[350355475,1737810640013,-1127.62,0.00018763,2]
[350355476,1737810640023,-500.0,0.00018763,2]
[350355477,1737810640032,-516.32919104,0.00018763,2]
[350355478,1737810640042,-500.0,0.00018763,2]
[350355479,1737810640052,-500.0,0.00018764,2]
[350355481,1737810640062,-500.0,0.00018764,2]
[350355482,1737810640073,-451.96,0.00018764,2]
[350355485,1737810640085,-500.0,0.00018764,2]
[350355486,1737810640095,-719.94,0.00018764,2]
[350355488,1737810640104,-500.0,0.00018764,2]
[350355489,1737810640114,-500.0,0.00018764,2]
[350355490,1737810640125,-500.0,0.00018764,2]
[350355491,1737810640134,-500.0,0.00018764,2]
[350355492,1737810640144,-1000.0,0.0001878,2]
[350355493,1737810640157,-500.0,0.000189,2]
[350355494,1737810640167,-828.25,0.000189,2]
[350355495,1737810640176,-500.0,0.000189,2]
[350355496,1737810640186,-249.64472895,0.000189,2]
[350355497,1737810640196,-796.62,0.000189,2]
[350355498,1737810640205,-679.27,0.000189,2]
[350355499,1737810640214,-1400.0,0.000189,6]
[350355500,1737810640223,-500.0,0.000189,2]
[350355501,1737810640233,-500.0,0.000189,2]
[350355502,1737810640242,-574.85,0.000189,2]
[350355503,1737810640251,-500.0,0.000189,2]
[350355504,1737810640260,-500.0,0.000189,2]
[350355505,1737810640269,-500.0,0.000189,2]
[350355506,1737810640284,-205.61619387,0.000189,2]
[350355507,1737810640294,-595.61,0.000189,2]
[350355508,1737810640304,-1127.62,0.000189,2]
[350355509,1737810640314,-500.0,0.000189,2]
[350355510,1737810640323,-500.0,0.000189,2]
[350355511,1737810640331,-634.6,0.00018901,2]
[350355512,1737810640340,-500.0,0.00018901,2]
[350355513,1737810640349,-500.0,0.00018901,2]
[350355514,1737810640360,-719.94,0.00018901,2]
[350355515,1737810640369,-500.0,0.00018901,2]
[350355516,1737810640379,-500.0,0.00018901,2]
[350355517,1737810640388,-500.0,0.00018901,2]
[350355518,1737810640398,-500.0,0.00018901,2]
[350355519,1737810640408,-650.0,0.00019,2]
[350355520,1737810640419,-500.0,0.00019037,2]
[350355521,1737810640428,-828.25,0.00019037,2]
[350355522,1737810640437,-500.0,0.00019037,2]
[350355523,1737810640447,-796.62,0.00019037,2]
[350355524,1737810640457,-679.27,0.00019037,2]
[350355525,1737810640467,-425.11505789,0.00019037,2]
[350355526,1737810640476,-500.0,0.00019037,2]
[350355527,1737810640487,-574.85,0.00019037,2]
[350355528,1737810640496,-500.0,0.00019037,2]
[350355529,1737810640506,-500.0,0.00019037,2]
[350355530,1737810640517,-500.0,0.00019037,2]
[350355531,1737810640526,-595.61,0.00019037,2]
[350355532,1737810640535,-1127.62,0.00019037,2]
[350355533,1737810640544,-500.0,0.00019037,2]
[350355534,1737810640554,-500.0,0.00019037,2]
[350355535,1737810640563,-483.58,0.00019038,2]
[350355536,1737810640572,-500.0,0.00019038,2]
[350355537,1737810640581,-719.94,0.00019038,2]
[350355539,1737810640590,-500.0,0.00019038,2]
[350355541,1737810640599,-571.33568121,0.00019038,2]
[350355543,1737810640609,-500.0,0.00019038,2]
[350355544,1737810640618,-500.0,0.00019038,2]
[350355545,1737810640627,-322.0,0.00019068,2]
[350355546,1737810640636,-6840.28249148,0.00019112,2]
[350355547,1737810640646,-205.61619387,0.0001915,2]
[350355548,1737810640655,-500.0,0.00019174,2]
[350355549,1737810640664,-828.25,0.00019174,2]
[350355550,1737810640674,-500.0,0.00019174,2]
[350355551,1737810640683,-796.62,0.00019174,2]
[350355552,1737810640693,-679.27,0.00019174,2]
[350355553,1737810640702,-500.0,0.00019174,2]
[350355554,1737810640711,-574.85,0.00019174,2]
[350355555,1737810640721,-271.52509141,0.00019174,2]
[350355557,1737810640731,-500.0,0.00019174,2]
[350355559,1737810640740,-500.0,0.00019174,2]
[350355561,1737810640749,-595.61,0.00019174,2]
[350355563,1737810640759,-1127.62,0.00019174,2]
[350355565,1737810640768,-500.0,0.00019174,2]
[350355567,1737810640777,-500.0,0.00019174,2]
[350355569,1737810640787,-500.0,0.00019175,2]
[350355571,1737810640797,-719.94,0.00019175,2]
[350355572,1737810640806,-500.0,0.00019175,2]
[350355573,1737810640815,-467.03894834,0.00019175,2]
[350355574,1737810640825,-216.93619659,0.00019175,2]
[350355575,1737810640835,-356.91128253,0.00019196,2]
[350355576,1737810640844,-895.27415269,0.00019258,2]
[350355577,1737810640854,-508.95,0.00019299,2]
[350355578,1737810640863,-500.0,0.00019311,2]
[350355579,1737810640873,-828.25,0.00019311,2]
[350355580,1737810640883,-500.0,0.00019311,2]
[350355581,1737810640892,-796.62,0.00019311,2]
[350355582,1737810640902,-679.27,0.00019311,2]
[350355583,1737810640911,-583.12060374,0.00019311,2]
[350355584,1737810640920,-574.85,0.00019311,2]
[350355585,1737810640929,-500.0,0.00019311,2]
[350355586,1737810640940,-500.0,0.00019311,2]
[350355587,1737810640949,-595.61,0.00019311,2]
[350355588,1737810640958,-1127.62,0.00019311,2]
[350355589,1737810640968,-500.0,0.00019311,2]
[350355590,1737810640977,-500.0,0.00019311,2]
[350355591,1737810640987,-500.0,0.00019312,2]
[350355592,1737810640996,-719.94,0.00019312,2]
[350355593,1737810641005,-500.0,0.00019312,2]
[350355594,1737810641014,-19723.6924244,0.00019345,2]
[350355595,1737810641023,-19723.6924244,0.00019346,2]
[350355596,1737810641032,-4234.99269933,0.00019349,2]
[350355597,1737810641041,-207.69923342,0.00019349,2]
[350355598,1737810641051,-200.0,0.0001935,2]
[350355599,1737810641061,-2796.09713421,0.00019353,2]
[350355600,1737810641071,-4225.33906031,0.00019353,2]
[350355601,1737810641087,-9.65363902,0.00019353,2]
[350355602,1737810641096,-284.06228231,0.00019354,2]
[350355603,1737810641109,-267.47818767,0.00019354,2]
[350355604,1737810641128,-233.6869748,0.00018352,2]
[350355605,1737810641137,-3088.9046152,0.00019354,2]
[350355606,1737810641149,-3112.60000001,0.00019354,2]
[350355607,1737810641695,-500.0,0.00017531,2]
[350355608,1737810641706,-500.0,0.00017804,2]
[350355609,1737810641716,-500.0,0.00017941,2]
[350355610,1737810641726,-500.0,0.00018078,2]
[350355611,1737810641739,-500.0,0.00018078,2]
[350355612,1737810641749,-500.0,0.00018215,2]
[350355613,1737810641759,-500.0,0.00018215,2]
[350355614,1737810641768,-500.0,0.00018352,2]
[350355615,1737810641777,-500.0,0.00018352,2]
[350355616,1737810641786,-500.0,0.00018489,2]
[350355617,1737810641795,-442.44524115,0.00018489,2]
[350355618,1737810641805,-500.0,0.00018626,2]
[350355619,1737810641815,-401.57420091,0.00018763,2]
[350355620,1737810641825,-12970.64733921,0.00019354,2]
[350355621,1737810641835,-338.61085121,0.00019355,2]
[350355622,1737810641845,-8469.98539866,0.00019356,2]
[350355623,1737810641856,-123797.3586748,0.00019357,2]
[350355624,1737810641865,-10437.65860883,0.00019361,2]
[350355625,1737810641876,-17756.61790873,0.00019361,2]
[350355626,1737810641886,-207.69923342,0.00019366,2]
[350355627,1737810641896,-1319.58388146,0.00019368,2]
[350355628,1737810641905,-828.79274622,0.00019371,2]
[350355629,1737810641916,-338.61085121,0.00019375,2]
[350355630,1737810641925,-3105.27192245,0.00019377,2]
[350355631,1737810641935,-659.79194073,0.00019377,2]
[350355632,1737810641945,-200.0,0.00019378,2]
[350355633,1737810641955,-17386.85056748,0.00019378,2]
[350355634,1737810641964,-10437.65860883,0.0001938,2]
[350355635,1737810641975,-17386.85056748,0.00019381,2]
[350355636,1737810641985,-10437.65860883,0.00019381,2]
[350355637,1737810641995,-17756.61790873,0.00019383,2]
[350355638,1737810642004,-1319.58388146,0.00019383,2]
[350355639,1737810642014,-4234.99269933,0.00019383,2]
[350355640,1737810642023,-13567.4202137,0.00019386,2]
[350355641,1737810642035,-495.87019917,0.00019386,2]
[350355642,1737810642052,-3693.32749586,0.00019386,2]
[350355643,1737810642062,-1387.17250414,0.00019386,2]
[350355644,1737810642075,-1822.50118882,0.00019386,2]
[350355645,1737810642090,-2200.347,0.00019386,2]
[350355646,1737810642102,-11976.82987452,0.00019386,2]
[350355647,1737810642112,-200.0,0.00019387,2]
[350355648,1737810642122,-19723.6924244,0.00019388,2]
[350355649,1737810642132,-19723.6924244,0.00019388,2]
[350355650,1737810642141,-1552.63596122,0.0001939,2]
[350355651,1737810642152,-207.69923342,0.00019393,2]
[350355652,1737810642162,-123797.3586748,0.00019395,2]
[350355653,1737810642172,-8469.98539866,0.00019396,2]
[350355654,1737810642181,-4234.99269933,0.00019396,2]
[350355655,1737810642191,-19723.6924244,0.00019398,2]
[350355656,1737810642201,-205.61619387,0.000194,2]
[350355657,1737810642210,-338.61085121,0.00019401,2]
[350355658,1737810642219,-1552.63596122,0.00019403,2]
[350355659,1737810642229,-19723.6924244,0.00019405,2]
[350355660,1737810642240,-19723.6924244,0.00019405,2]
[350355661,1737810642252,-2796.09713421,0.00019406,2]
[350355662,1737810642264,-19723.6924244,0.00019406,2]
[350355663,1737810642274,-4234.99269933,0.00019407,2]
[350355664,1737810642284,-19723.6924244,0.00019407,2]
[350355665,1737810642296,-19723.6924244,0.00019408,2]
[350355666,1737810642307,-62110.07027593,0.00019409,2]
[350355667,1737810642319,-62110.07027593,0.00019409,2]
[350355668,1737810642329,-17386.85056748,0.00019411,2]
[350355669,1737810642341,-123797.3586748,0.00019413,2]
[350355670,1737810642350,-2796.09713421,0.00019413,2]
[350355671,1737810642360,-4234.99269933,0.00019415,2]
[350355672,1737810642370,-122334.5406201,0.00019416,2]
[350355673,1737810642426,-419.87015463,0.00019416,2]
[350355674,1737810642439,-252.55461911,0.00019416,2]
[350355675,1737810642453,-790.39328096,0.00019416,2]
[350355676,1737810642463,-213.17362168,0.00019417,2]
[350355677,1737810642476,-497.43437843,0.00019417,2]
[350355685,1737810643935,-1000.0,0.00017583,2]
[350355686,1737810643945,-1049.41784206,0.00019417,2]
[350355687,1737810643994,-2381.55454959,0.00019417,2]
[350355688,1737810644004,-338.61085121,0.00019417,2]
[350355689,1737810644013,-2479.66699787,0.00019418,2]
[350355690,1737810644025,-583.235008,0.00019418,2]
[350355701,1737810646078,-42.36991658,0.00019418,2]
[350355702,1737810646090,-1006.28375055,0.0001942,2]
[350355703,1737810646404,-246.28,0.00019037,2]
[350355704,1737810646414,-1775.64127994,0.0001942,2]
[350355723,1737811052578,150.06,0.0001791,30]
[350355747,1737811832307,-385.91986734,9.778e-05,2]
[350355748,1737811832758,-2062.26129766,9.778e-05,2]
[350355749,1737811832768,-9038.42014551,9.828e-05,2]
[350355750,1737811832778,-300.0,9.999e-05,2]
[350355751,1737811832788,-150.0,9.999e-05,2]
[350355752,1737811832798,-1000.0,0.0001,2]
[350355753,1737811832808,-250.0,0.0001,2]
[350355754,1737811832818,-133516.54411043,0.0001,2]
[350355755,1737811832830,-65978.46415996,0.0001,2]
[350355756,1737811832842,-1298.590636,0.0001,2]
[350355757,1737811832854,-493.43965048,0.0001,2]
[350355769,1737811838430,-1584.05052263,0.0001,2]
[350355770,1737811838444,-1371.89638464,0.0001,2]
[350355819,1737811840299,-2664.65014,0.0001,2]
[350355820,1737811840430,-16558.8571972,0.0001,2]
[350355821,1737811840622,-551.77050447,0.0001,2]
[350355822,1737811840634,-1204.6136749,0.0001,2]
[350355823,1737811840685,-1046.1426168,0.0001,2]
[350355824,1737811840696,-3630.23360152,0.0001,2]
[350355842,1737811844244,-1382.6378241,0.0001,2]
[350355903,1737811846255,-1370.0364623,0.0001,2]
[350355904,1737811846267,-1132.36175706,0.0001,2]
[350355905,1737811846278,-3790.8236148,0.0001,2]
[350355906,1737811846317,-1523.42,0.0001,2]
[350355907,1737811846328,-355795.07861821,0.0001,2]
[350355908,1737811846437,-20942.85398,0.0001,2]
[350355909,1737811846500,-12168.50846417,0.0001,2]
[350355910,1737811846727,-3395.55566097,0.0001,2]
[350355918,1737812207566,500.0,0.00022,30]
[350355920,1737812431806,164.92,8.723e-05,2]
[350355921,1737812565961,1834.64,8.616e-05,2]
[350355923,1737812677709,164.14,8.2e-05,2]
[350355924,1737812801120,-254.93066433,9.948e-05,2]
[350355933,1737813031424,-1553.87619107,9.948e-05,2]
[350355934,1737813031759,-1413.66384493,9.948e-05,2]
[350355935,1737813031769,-5939.84417996,9.999e-05,2]
[350355936,1737813031778,-150.0,9.999e-05,2]
[350355937,1737813031787,-21393.70649097,0.0001,2]
[350355938,1737813031817,-86009.20562088,0.0001,2]
[350355939,1737813031828,-3000.0,0.0001,2]
[350355940,1737813031839,-980.99926989,0.0001,2]
[350355941,1737813031850,-2639.74,0.000101,2]
[350355942,1737813031860,-2000.0,0.0001012,2]
[350355943,1737813031874,-231.56,0.00010137,2]
[350355944,1737813031884,-157.63,0.00010137,2]
[350355945,1737813031893,-154.88,0.00010137,2]
[350355946,1737813031902,-186.6,0.00010161,2]
[350355947,1737813031913,-166.08,0.00010162,2]
[350355948,1737813031922,-150.0,0.00010219,2]
[350355949,1737813031931,-1860.09,0.00010222,2]
[350355951,1737813031941,-306.07,0.00010238,2]
[350355952,1737813031950,-189.62,0.00010251,2]
[350355953,1737813031962,-430.79651456,0.00010263,2]
[350355954,1737813031971,-158.4,0.00010463,2]
[350355955,1737813031979,-158.4,0.0001047,2]
[350355956,1737813031988,-430.79651456,0.00010475,2]
[350355958,1737813031997,-158.4,0.00010478,2]
[350355960,1737813032007,-158.4,0.00010485,2]
[350355962,1737813032016,-1685.35,0.00010486,2]
[350355964,1737813032025,-158.4,0.00010493,2]
[350355966,1737813032034,-158.4,0.000105,2]
[350355968,1737813032044,-158.4,0.00010508,2]
[350355970,1737813032053,-23900.0,0.00010511,2]
[350355971,1737813032062,-158.4,0.00010515,2]
[350355973,1737813032071,-587.54,0.00010604,2]
[350355975,1737813032081,-989.59,0.00010655,2]
[350355977,1737813032090,-430.79651456,0.00010739,2]
[350355980,1737813032099,-1834.64,0.0001088,2]
[350355981,1737813032108,-150.0,0.00010959,2]
[350355983,1737813032117,-173.3,0.00010974,2]
[350355986,1737813032127,-2682.74301315,0.00011,2]
[350355988,1737813032136,-1000.0,0.00011014,2]
[350355990,1737813032145,-650.29,0.00011042,2]
[350355992,1737813032154,-300.0,0.00011087,2]
[350355994,1737813032163,-3000.0,0.000111,2]
[350355995,1737813032172,-430.79651456,0.00011104,2]
[350355997,1737813032182,-36069.14746753,0.0001111,2]
[350355999,1737813032191,-1277.5,0.00011124,2]
[350356001,1737813032200,-560.61,0.0001121,2]
[350356002,1737813032209,-2123.95,0.00011243,2]
[350356004,1737813032218,-301.1,0.00011253,2]
[350356006,1737813032227,-250.0,0.00011438,2]
[350356007,1737813032237,-526.52428158,0.00011493,2]
[350356008,1737813032246,-2300.0,0.000117,4]
[350356010,1737813032255,-4700.0,0.000118,4]
[350356012,1737813032264,-250.0,0.00011821,2]
[350356014,1737813032274,-36069.14746744,0.00011843,2]
[350356016,1737813032283,-166.08,0.00011855,2]
[350356018,1737813032293,-250.0,0.00011896,2]
[350356020,1737813032302,-184.1873916,0.000119,2]
[350356022,1737813032311,-7100.0,0.000119,4]
[350356024,1737813032321,-2754.78585875,0.000119,2]
[350356026,1737813032330,-44511.89252438,0.000119,2]
[350356028,1737813032339,-6443.0,0.00011973,2]
[350356030,1737813032349,-803.0,0.00011973,2]
[350356032,1737813032358,-359.86115476,0.00011973,2]
[350356033,1737813032367,-501.11766659,0.00011973,2]
[350356034,1737813032377,-423.32863977,0.00011973,2]
[350356035,1737813032387,-500.0,0.00011973,2]
[350356036,1737813032396,-501.21143477,0.00011973,2]
[350356037,1737813032405,-989.59,0.00011986,2]
[350356038,1737813032415,-4373.41,0.00011989,2]
[350356039,1737813032424,-158.13677173,0.0001199,2]
[350356040,1737813032433,-500.0,0.00011999,2]
[350356041,1737813032443,-500.0,0.00011999,2]
[350356042,1737813032453,-483.58342973,0.00011999,2]
[350356043,1737813032462,-3836.79248078,0.00011999,2]
[350356044,1737813032472,-569822.83822557,0.00011999,2]
[350356050,1737813037448,-432946.63852079,0.00011999,2]
[350356051,1737813037458,-855801.18117059,0.00012,2]
[350356052,1737813037468,-9452.21597015,0.00012,3]
[350356053,1737813037478,-250.0,0.00012,2]
[350356054,1737813037487,-250.0,0.00012,2]
[350356055,1737813037497,-250.0,0.00012,2]
[350356056,1737813037507,-250.0,0.00012,2]
[350356057,1737813037516,-250.0,0.00012,2]
[350356058,1737813037525,-250.0,0.00012,2]
[350356059,1737813037535,-250.0,0.00012,2]
[350356060,1737813037544,-250.0,0.00012,2]
[350356061,1737813037553,-250.0,0.00012,2]
[350356062,1737813037562,-250.0,0.00012,2]
[350356063,1737813037571,-250.0,0.00012,2]
[350356064,1737813037580,-250.0,0.00012,2]
[350356065,1737813037590,-250.0,0.00012,2]
[350356066,1737813037599,-250.0,0.00012,2]
[350356067,1737813037609,-250.0,0.00012,2]
[350356068,1737813037618,-250.0,0.00012,2]
[350356069,1737813037627,-250.0,0.00012,2]
[350356070,1737813037636,-250.0,0.00012,2]
[350356071,1737813037646,-250.0,0.00012,2]
[350356072,1737813037656,-250.0,0.00012,2]
[350356073,1737813037665,-250.0,0.00012,2]
[350356074,1737813037675,-250.0,0.00012,2]
[350356075,1737813037686,-250.0,0.00012,2]
[350356076,1737813037696,-250.0,0.00012,2]
[350356077,1737813037706,-250.0,0.00012,2]
[350356078,1737813037715,-192.99448606,0.00012019,2]
[350356079,1737813037724,-26399.18,0.00012055,2]
[350356080,1737813037734,-156.03,0.00012086,2]
[350356081,1737813037743,-565.65,0.00012107,2]
[350356082,1737813037752,-850.75861536,0.00012119,2]
[350356083,1737813037761,-980.99926989,0.00012141,2]
[350356084,1737813037771,-286.96,0.00012329,2]
[350356085,1737813037780,-3000.0,0.0001235,2]
[350356086,1737813037789,-1000.0,0.00012391,2]
[350356087,1737813037798,-250.0,0.00012407,2]
[350356088,1737813037808,-44511.89252437,0.000125,2]
[350356089,1737813037817,-1000.0,0.00012521,2]
[350356090,1737813037826,-36069.14746744,0.00012576,2]
[350356091,1737813037836,-1124.2,0.00012603,2]
[350356092,1737813037845,-173.3,0.00012785,2]
[350356093,1737813037854,-164.92,0.00013084,2]
[350356094,1737813037864,-44511.89252437,0.00013099,2]
[350356095,1737813037880,-1834.64,0.00013144,2]
[350356096,1737813037890,-151.0,0.00013309,2]
[350356097,1737813037904,-151.0,0.00013309,2]
[350356098,1737813037915,-151.0,0.00013309,2]
[350356099,1737813037924,-151.0,0.00013309,2]
[350356100,1737813037934,-36069.14746744,0.00013309,2]
[350356101,1737813037944,-989.59,0.00013318,2]
[350356102,1737813037954,-1500.0,0.00013522,2]
[350356103,1737813037964,-166.08,0.00013549,2]
[350356104,1737813037974,-3000.0,0.000136,2]
[350356105,1737813037983,-500.0,0.00013699,2]
[350356106,1737813037993,-200.0,0.00013699,2]
[350356107,1737813038002,-271.8,0.00013699,2]
[350356108,1737813038012,-44511.89252437,0.00013699,2]
[350356109,1737813038021,-850.75861532,0.00013742,2]
[350356110,1737813038031,-1000.0,0.00013767,2]
[350356111,1737813038041,-151.0,0.00013973,2]
[350356112,1737813038051,-151.0,0.00013973,2]
[350356113,1737813038060,-151.0,0.00014042,2]
[350356114,1737813038069,-151.0,0.00014042,2]
[350356115,1737813038079,-151.0,0.00014042,2]
[350356116,1737813038088,-355.268357,0.00014042,2]
[350356117,1737813038098,-151.0,0.00014042,2]
[350356118,1737813038107,-355.268357,0.00014042,2]
[350356119,1737813038117,-151.0,0.00014042,2]
[350356120,1737813038127,-36069.14746744,0.00014042,2]
[350356121,1737813038136,-2639.74,0.00014139,2]
[350356122,1737813038146,-168.74,0.0001424,2]
[350356123,1737813038155,-192.99448604,0.00014294,2]
[350356124,1737813038165,-44511.89252437,0.00014299,2]
[350356125,1737813038175,-271.8,0.00014384,2]
[350356126,1737813038184,-8092.28733542,0.0001439,2]
[350356127,1737813038194,-989.59,0.0001465,2]
[350356128,1737813038203,-155.599283,0.0001465,2]
[350356129,1737813038213,-151.0,0.0001465,2]
[350356130,1737813038223,-151.0,0.00014664,2]
[350356131,1737813038233,-155.131727,0.00014664,2]
[350356132,1737813038243,-152.674365,0.00014664,2]
[350356133,1737813038252,-228.93736,0.00014664,2]
[350356134,1737813038262,-228.93736,0.00014664,2]
[350356135,1737813038271,-151.0,0.00014664,2]
[350356136,1737813038281,-153.309865,0.00014664,2]
[350356137,1737813038291,-36069.14746744,0.00014776,2]
[350356138,1737813038300,-159.908397,0.00014776,2]
[350356139,1737813038310,-177.785154,0.00014776,2]
[350356140,1737813038319,-2000.0,0.0001482,2]
[350356141,1737813038329,-3000.0,0.0001485,2]
[350356142,1737813038338,-44511.89252437,0.00014898,2]
[350356143,1737813038347,-1100.30085532,0.000149,2]
[350356144,1737813038357,-237.96127,0.000149,2]
[350356145,1737813038366,-152.778165,0.000149,2]
[350356146,1737813038376,-151.0,0.000149,2]
[350356147,1737813038386,-9500.0,0.000149,5]
[350356148,1737813038395,-5026.09412915,0.00015,2]
[350356149,1737813038404,-550.0,0.00015,2]
[350356150,1737813038414,-151.0,0.00015,2]
[350356151,1737813038423,-151.0,0.00015,2]
[350356152,1737813038433,-156.4632,0.00015,2]
[350356153,1737813038443,-151.0,0.00015,2]
[350356154,1737813038452,-151.0,0.00015,2]
[350356155,1737813038462,-151.0,0.00015,2]
[350356156,1737813038471,-151.0,0.00015,2]
[350356157,1737813038480,-150.0,0.00015068,2]
[350356158,1737813038490,-271.8,0.00015068,2]
[350356159,1737813038499,-1000.0,0.00015144,2]
[350356160,1737813038509,-166.08,0.00015243,2]
[350356161,1737813038519,-850.75861532,0.00015366,2]
[350356162,1737813038528,-151.0,0.00015367,2]
[350356163,1737813038538,-152.190406,0.00015367,2]
[350356164,1737813038548,-157.510345,0.00015367,2]
[350356165,1737813038557,-152.677683,0.00015367,2]
[350356166,1737813038567,-1834.64,0.00015408,2]
[350356167,1737813038576,-44511.89252437,0.00015498,2]
[350356168,1737813038585,-2623.34035672,0.000155,2]
[350356169,1737813038595,-2623.3403566,0.000155,2]
[350356170,1737813038604,-2623.3403566,0.000155,2]
[350356171,1737813038614,-2623.3403566,0.000155,2]
[350356172,1737813038623,-2623.3403566,0.000155,2]
[350356173,1737813038632,-2623.3403566,0.000155,2]
[350356174,1737813038642,-2623.3403566,0.000155,2]
[350356175,1737813038651,-2623.3403566,0.000155,2]
[350356176,1737813038661,-2623.3403566,0.000155,2]
[350356177,1737813038671,-2623.3403566,0.000155,2]
[350356178,1737813038680,-2623.3403566,0.000155,2]
[350356179,1737813038689,-2623.3403566,0.000155,2]
[350356180,1737813038699,-2623.3403566,0.000155,2]
[350356181,1737813038708,-151.0,0.000155,2]
[350356182,1737813038717,-154.208319,0.000155,2]
[350356183,1737813038726,-151.0,0.000155,2]
[350356184,1737813038736,-355.268357,0.000155,2]
[350356185,1737813038745,-151.0,0.000155,2]
[350356186,1737813038754,-355.268357,0.000155,2]
[350356187,1737813038764,-36069.14746744,0.00015509,2]
[350356188,1737813038773,-271.8,0.00015753,2]
[350356189,1737813038783,-2623.3403566,0.00015831,2]
[350356190,1737813038793,-989.59,0.00015982,2]
[350356191,1737813038803,-267.713642,0.00016046,2]
[350356192,1737813038813,-160.442653,0.00016046,2]
[350356193,1737813038823,-286.96,0.00016096,2]
[350356194,1737813038832,-3000.0,0.000161,2]
[350356195,1737813038842,-2294.0,0.00016203,2]
[350356196,1737813038852,-2623.3403566,0.0001621,2]
[350356197,1737813038862,-159.281062,0.00016233,2]
[350356198,1737813038873,-36069.14746744,0.00016242,2]
[350356199,1737813038884,-151.0,0.00016278,2]
[350356200,1737813038893,-152.580123,0.00016278,2]
[350356201,1737813038903,-151.721305,0.00016278,2]
[350356202,1737813038912,-2076.45196716,0.00016356,2]
[350356203,1737813038923,-184.18739159,0.000164,2]
[350356204,1737813038933,-2147.0,0.000164,5]
[350356205,1737813038948,-251.5,0.000164,2]
[350356206,1737813038959,-500.0,0.00016438,2]
[350356207,1737813038968,-505.48303075,0.00016438,2]
[350356208,1737813038977,-500.0,0.00016438,2]
[350356209,1737813038987,-500.0,0.00016438,2]
[350356210,1737813038996,-500.0,0.00016438,2]
[350356211,1737813039006,-500.0,0.00016438,2]
[350356212,1737813039015,-514.12516366,0.00016438,2]
[350356213,1737813039025,-500.0,0.00016438,2]
[350356214,1737813039034,-508.14278359,0.00016438,2]
[350356215,1737813039043,-500.0,0.00016438,2]
[350356216,1737813039053,-500.0,0.00016438,2]
[350356217,1737813039063,-506.08062414,0.00016438,2]
[350356218,1737813039072,-517.74622275,0.00016438,2]
[350356219,1737813039082,-512.1258472,0.00016438,2]
[350356220,1737813039091,-500.0,0.00016438,2]
[350356221,1737813039100,-500.0,0.00016438,2]
[350356222,1737813039110,-500.0,0.00016438,2]
[350356223,1737813039120,-616.42023708,0.00016438,2]
[350356224,1737813039130,-500.0,0.00016438,2]
[350356225,1737813039139,-500.0,0.00016438,2]
[350356226,1737813039149,-500.0,0.00016438,2]
[350356227,1737813039159,-500.0,0.00016438,2]
[350356228,1737813039168,-512.60227768,0.00016438,2]
[350356229,1737813039178,-500.0,0.00016438,2]
[350356230,1737813039188,-500.0,0.00016438,2]
[350356231,1737813039198,-500.0,0.00016438,2]
[350356232,1737813039208,-500.0,0.00016438,2]
[350356233,1737813039218,-500.0,0.00016438,2]